bitfinex/quotes_ETHUSD_20250403
["timestamp","ask_amount","ask_price","bid_price","bid_amount"]
[1743722870883,0.1,1810.9,1810.8,5.93592]
[1743722871257,0.1,1810.9,1810.8,5.52242]
[1743722872963,0.1,1810.9,1810.8,6.7373901]
[1743722875686,0.7994,1810.8,1810.6,5.52293]
[1743722876192,6.32192,1810.8,1810.5,5.52327]
[1743722876350,6.32192,1810.8,1810.5,5.5232]
[1743722876552,0.85453657,1810.8,1810.5,11.04638]
[1743722877684,0.85453657,1810.8,1810.6,5.52293]
[1743722877893,0.85453657,1810.8,1810.6,5.52292]
[1743722878193,0.7994,1810.8,1810.6,5.52289]
[1743722879095,0.7994,1810.8,1810.6,5.52299]
[1743722879376,6.0954,1810.8,1810.6,5.52299]
[1743722879963,5.296,1810.8,1810.7,5.52272]
[1743722881066,5.296,1810.8,1810.6,6.627537]
[1743722881279,5.296,1810.8,1810.6,11.04579]
[1743722882156,5.296,1810.8,1810.6,11.04577]
[1743722882355,5.296,1810.8,1810.6,5.52288]
[1743722883010,5.296,1810.8,1810.6,11.04579]
[1743722883718,5.296,1810.8,1810.6,5.52288]
[1743722884013,5.296,1810.8,1810.5,11.0465]
[1743722884314,5.296,1810.8,1810.6,5.52302]
[1743722884605,5.296,1810.8,1810.6,11.04604]
[1743722885410,5.296,1810.8,1810.6,5.52293]
[1743722885580,5.296,1810.8,1810.6,11.04584]
[1743722886477,5.296,1810.8,1810.7,5.52272]
[1743722887920,0.1,1810.9,1810.7,5.52272]
[1743722888095,5.396,1810.9,1810.7,5.52258]
[1743722888290,5.396,1810.9,1810.8,5.52242]
[1743722889375,0.1,1810.9,1810.8,5.52242]
[1743722889619,0.1,1810.9,1810.8,7.21827]
[1743722897562,0.1,1810.9,1810.8,7.63177]
[1743722899173,0.1,1810.9,1810.8,10.63177]
[1743722901588,6.0658,1811.5,1811.4,5.52059]
[1743722901790,42.2118,1811.7,1811.6,5.51998]
[1743722901987,47.5068,1811.7,1811.6,5.51998]
[1743722902990,47.5068,1811.7,1811.5,5.52015]
[1743722903352,47.5068,1811.7,1811.5,11.04034]
[1743722904094,47.5068,1811.7,1811.5,11.04029]
[1743722904261,47.5068,1811.7,1811.5,11.04032]
[1743722904792,42.2118,1811.7,1811.6,5.51998]
[1743722904977,46.735,1811.7,1811.6,5.51998]
[1743722907103,46.735,1811.7,1811.5,11.04031]
[1743722907309,46.735,1811.7,1811.6,5.51998]
[1743722909785,5.294,1811.7,1811.6,5.51998]
[1743722913003,0.1,1811.9,1811.7,5.51967]
[1743722913182,0.1,1811.9,1811.8,5.51937]
[1743722914499,0.1,1811.9,1811.8,5.93287]
[1743722915069,0.8719,1811.9,1811.8,5.51937]
[1743722915906,0.1,1811.9,1811.8,5.51937]
[1743722916105,0.1,1811.9,1811.8,7.173261]
[1743722916271,0.1,1811.9,1811.8,7.586761]
[1743722918307,1e-05,1811.9,1811.8,14.83110972]
[1743722919398,1e-05,1811.9,1811.8,20.65210972]
[1743722920022,1e-05,1811.9,1811.8,10.586761]
[1743722922009,1e-05,1811.9,1811.8,16.746761]
[1743722924275,1e-05,1811.9,1811.8,16.196761]
[1743722924614,1e-05,1811.9,1811.8,16.746761]
[1743722925449,1e-05,1811.9,1811.8,16.333261]
[1743722927770,1e-05,1811.9,1811.8,10.173261]
[1743722928173,1e-05,1811.9,1811.8,7.173261]
[1743722936389,1e-05,1811.9,1811.8,7.22844456]
[1743722937389,1e-05,1811.9,1811.8,7.173261]
[1743722937581,1e-05,1811.9,1811.8,7.2284446]
[1743722939967,1e-05,1811.9,1811.8,7.173261]
[1743722941006,1e-05,1811.9,1811.8,5.51937]
[1743722941296,6.10681,1811.9,1811.8,5.51937]
[1743722946090,6.10681,1811.9,1811.7,5.51954]
[1743722946298,6.16194657,1811.9,1811.7,5.51954]
[1743722947999,0.7561,1811.8,1811.6,5.51996]
[1743722948194,0.7561,1811.8,1811.6,11.03984]
[1743722948496,0.7561,1811.8,1811.7,5.51967]
[1743722949600,0.7561,1811.8,1811.6,5.51986]
[1743722949987,0.7561,1811.8,1811.6,11.03972]
[1743722950187,0.7561,1811.8,1811.7,5.51967]
[1743722951995,5.29101,1811.9,1811.8,5.51937]
[1743722952365,1e-05,1811.9,1811.8,5.51937]
[1743722952990,1e-05,1811.9,1811.8,6.06937]
[1743722953366,1e-05,1811.9,1811.8,5.51937]
[1743722957890,1e-05,1811.9,1811.7,6.623623]
[1743722957891,0.8004,1811.8,1811.7,5.51967]
[1743722958069,5.29,1811.8,1811.7,5.51967]
[1743722958275,1e-05,1811.9,1811.8,6.06937]
[1743722959100,1e-05,1811.9,1811.8,5.51937]
[1743722959704,1e-05,1811.9,1811.8,6.06937]
[1743722961013,1e-05,1811.9,1811.8,6.12455657]
[1743722961310,1e-05,1811.9,1811.8,6.06937]
[1743722961511,1e-05,1811.9,1811.8,7.3938681]
[1743722962016,1e-05,1811.9,1811.8,7.44905491]
[1743722962477,1e-05,1811.9,1811.8,7.3938681]
[1743722965512,1e-05,1811.9,1811.8,7.44905488]
[1743722966224,1e-05,1811.9,1811.8,7.3938681]
[1743722966393,1e-05,1811.9,1811.8,7.4490548]
[1743722966580,1e-05,1811.9,1811.8,7.3938681]
[1743722967494,1e-05,1811.9,1811.8,7.8073681]
[1743722968721,1e-05,1811.9,1811.8,7.3938681]
[1743722971128,1e-05,1811.9,1811.8,6.8438681]
[1743722971301,1e-05,1811.9,1811.8,5.51937]
[1743722973526,1e-05,1811.9,1811.8,6.06937]
[1743722973706,1e-05,1811.9,1811.8,6.12455799]
[1743722974534,1e-05,1811.9,1811.8,6.06937]
[1743722978475,0.70919269,1812.2,1812.1,5.51845]
[1743722979642,0.70919269,1812.2,1812.0,11.03742]
[1743722979857,0.70919269,1812.2,1812.1,5.51845]
[1743722981080,0.70919269,1812.2,1812.0,11.03734]
[1743722981372,0.70919269,1812.2,1812.1,5.51845]
[1743722981772,0.70919269,1812.2,1812.0,5.51863]
[1743722982072,0.70919269,1812.2,1812.0,11.03728]
[1743722982274,0.76432926,1812.2,1812.0,11.03728]
[1743722983186,0.76432926,1812.2,1812.0,5.51863]
[1743722983333,0.76432926,1812.2,1812.0,11.03725]
[1743722983676,0.76432926,1812.2,1812.0,5.51862]
[1743722983966,0.8063,1812.1,1811.9,5.51906]
[1743722984154,0.8063,1812.1,1811.9,5.51893]
[1743722984361,0.86143657,1812.1,1811.9,5.51893]
[1743722985991,0.8063,1812.0,1811.8,5.51926]
[1743722986168,6.15043657,1811.9,1811.8,5.51926]
[1743722986349,6.0953,1811.9,1811.8,5.51926]
[1743722988257,6.15043657,1811.9,1811.8,5.51926]
[1743722989170,6.0953,1811.9,1811.8,5.51926]
[1743722991660,0.05513657,1812.1,1812.0,5.51876]
[1743722991661,0.86143657,1812.1,1812.0,5.51876]
[1743722991997,6.0953,1812.1,1812.0,5.51876]
[1743722992205,5.289,1812.1,1812.0,5.51876]
[1743723000191,0.05513657,1812.3,1812.1,11.03677]
[1743723000365,5.289,1812.5,1812.3,5.51779]
[1743723000563,0.84493657,1812.4,1812.2,5.51809]
[1743723000794,0.7898,1812.3,1812.0,5.51875]
[1743723001102,0.7898,1812.1,1812.0,5.51875]
[1743723001302,6.0778,1812.1,1812.0,5.51875]
[1743723003066,0.84493657,1812.3,1812.2,5.51815]
[1743723003290,0.05513657,1812.4,1812.3,5.51785]
[1743723003461,5.288,1812.4,1812.3,5.51785]
[1743723007269,0.7898,1812.3,1812.2,5.51815]
[1743723007581,0.84493657,1812.3,1812.2,5.51815]
[1743723008108,0.7898,1812.3,1812.2,5.51815]
[1743723009610,6.0975,1812.4,1812.3,5.51785]
[1743723009995,5.288,1812.4,1812.3,5.51785]
[1743723010307,0.86463657,1812.6,1812.4,11.03482]
[1743723010509,5.288,1812.5,1812.4,5.5174]
[1743723011223,6.32754,1812.3,1811.9,5.5188]
[1743723011511,0.86463657,1812.2,1812.1,5.51845]
[1743723012203,0.86463657,1812.2,1812.0,11.0374]
[1743723012404,5.288,1812.1,1811.9,5.51895]
[1743723012609,5.288,1812.1,1812.0,5.51876]
[1743723022336,0.8095,1812.3,1812.2,5.51815]
[1743723022541,6.0965,1812.3,1812.2,5.51815]
[1743723022746,0.8095,1812.3,1812.2,6.06815]
[1743723022953,41.413,1812.7,1812.5,11.03448]
[1743723023124,0.05513657,1812.6,1812.5,5.51724]
[1743723023304,5.34213657,1812.6,1812.5,5.51724]
[1743723023939,0.7708,1812.5,1812.4,11.03482]
[1743723025343,6.11293657,1812.6,1812.4,11.03482]
[1743723025513,6.0578,1812.6,1812.5,5.51724]
[1743723025919,5.287,1812.6,1812.5,5.51724]
[1743723026539,0.7708,1812.8,1812.6,5.51685]
[1743723026739,5.287,1812.7,1812.6,11.03364]
[1743723026948,5.287,1812.7,1812.6,5.51679]
[1743723028646,0.7708,1812.8,1812.7,5.51663]
[1743723028844,0.7708,1812.8,1812.7,0.05516662]
[1743723029050,0.7708,1812.8,1812.7,5.51663]
[1743723031251,0.7708,1812.8,1812.7,6.06663]
[1743723033454,0.7708,1812.8,1812.7,6.12178998]
[1743723033758,0.1,1812.9,1812.8,6.06632]
[1743723035355,0.1,1812.9,1812.8,6.4876055]
[1743723035542,0.1,1812.9,1812.8,6.06632]
[1743723035936,0.1,1812.9,1812.8,5.51632]
[1743723038235,0.1,1812.9,1812.8,5.57147773]
[1743723038429,0.1,1812.9,1812.8,5.51632]
[1743723038634,0.1,1812.9,1812.8,5.57147774]
[1743723038955,0.1,1812.9,1812.8,5.51632]
[1743723039342,0.1,1812.9,1812.8,5.57147774]
[1743723039736,0.1,1812.9,1812.8,5.51632]
[1743723040745,0.1,1812.9,1812.8,6.12147775]
[1743723040951,0.1,1812.9,1812.8,7.23013078]
[1743723050192,0.1,1812.9,1812.8,7.285284]
[1743723050495,0.05513657,1813.4,1813.3,5.5148]
[1743723050496,0.8298,1813.4,1813.3,5.5148]
[1743723050652,0.8298,1813.4,1813.3,6.0648]
[1743723051264,5.284,1813.7,1813.6,5.51389]
[1743723051451,5.284,1813.7,1813.5,5.51419]
[1743723051651,5.284,1813.7,1813.5,5.51408]
[1743723051851,0.8298,1813.6,1813.5,6.06408]
[1743723052782,0.8298,1813.6,1813.5,7.221924]
[1743723054381,0.8298,1813.6,1813.4,5.51436]
[1743723054686,0.88493657,1813.6,1813.3,5.51476]
[1743723054885,0.88493657,1813.6,1813.3,5.51471]
[1743723055381,0.88493657,1813.6,1813.3,5.51466]
[1743723055683,0.88493657,1813.6,1813.3,11.0295]
[1743723055852,0.88493657,1813.6,1813.3,11.02939]
[1743723056052,0.88493657,1813.6,1813.3,5.51469]
[1743723056287,0.88493657,1813.6,1813.4,5.51448]
[1743723058285,0.88493657,1813.6,1813.3,11.0294]
[1743723059189,0.88493657,1813.6,1813.4,5.51444]
[1743723060287,0.88493657,1813.6,1813.3,5.51479]
[1743723060474,0.8049,1813.5,1813.3,11.02946]
[1743723060986,0.8049,1813.5,1813.3,11.02937]
[1743723061183,0.8049,1813.5,1813.3,5.51467]
[1743723061486,0.8049,1813.2,1812.9,5.51594]
[1743723061803,0.8049,1813.0,1812.9,5.51602]
[1743723063806,0.8049,1813.0,1812.9,6.06602]
[1743723067676,6.0418,1813.1,1813.0,5.51571]
[1743723069292,6.0418,1813.1,1812.9,11.03177]
[1743723069701,6.0418,1813.1,1813.0,5.51571]
[1743723070398,0.7538,1813.3,1813.2,5.51511]
[1743723070583,46.667,1813.4,1813.3,5.5148]
[1743723070786,46.667,1813.4,1813.2,11.03012]
[1743723071010,0.7538,1813.3,1813.2,11.02999]
[1743723071209,0.7538,1813.3,1813.2,5.51498]
[1743723071415,5.55101657,1813.3,1813.1,5.51535]
[1743723071614,0.7538,1813.2,1813.0,5.51565]
[1743723071826,0.80893657,1813.1,1813.0,5.51565]
[1743723072023,0.7538,1813.1,1813.0,5.51565]
[1743723073203,0.05513657,1813.3,1813.1,5.51515]
[1743723073538,0.7538,1813.3,1813.2,5.51511]
[1743723073831,6.0368,1813.3,1813.2,5.51511]
[1743723075239,0.7538,1813.3,1813.2,5.51511]
[1743723075439,6.0368,1813.3,1813.2,5.51511]
[1743723076347,5.283,1813.3,1813.2,5.51511]
[1743723076553,5.283,1813.3,1813.2,6.618136]
[1743723077346,0.80893657,1813.5,1813.4,5.5145]
[1743723077547,6.0368,1813.5,1813.4,5.5145]
[1743723078473,0.7538,1813.5,1813.4,5.5145]
[1743723078746,42.1408,1813.7,1813.6,5.51389]
[1743723078951,47.4228,1813.7,1813.6,5.51389]
[1743723080456,47.4228,1813.7,1813.5,5.51406]
[1743723080612,47.4228,1813.7,1813.5,11.02811]
[1743723081213,47.4228,1813.7,1813.6,5.51389]
[1743723081714,42.1408,1813.7,1813.6,5.51389]
[1743723081914,47.4228,1813.7,1813.6,5.51389]
[1743723082961,6.0358,1813.7,1813.6,5.51389]
[1743723084440,6.0358,1813.7,1813.5,5.51405]
[1743723084629,6.0358,1813.7,1813.6,5.51389]
[1743723087760,6.0358,1813.7,1813.5,11.02812]
[1743723088058,6.0358,1813.7,1813.6,5.51389]
[1743723089030,5.89109366,1813.7,1813.5,5.51405]
[1743723089230,4.21439699,1813.6,1813.3,5.51468]
[1743723089443,0.7826,1813.4,1813.3,5.51468]
[1743723090029,0.83773657,1813.6,1813.5,5.51419]
[1743723090233,0.83773657,1813.6,1813.4,11.02878]
[1743723090458,0.83773657,1813.6,1813.5,5.51419]
[1743723090650,0.7826,1813.6,1813.4,11.02878]
[1743723090852,0.83773657,1813.6,1813.4,11.02878]
[1743723091046,0.83773657,1813.6,1813.4,5.51439]
[1743723091362,0.83773657,1813.6,1813.4,11.02876]
[1743723091667,0.83773657,1813.6,1813.4,5.51436]
[1743723092272,0.83773657,1813.6,1813.4,11.02871]
[1743723092438,0.7826,1813.6,1813.5,5.51419]
[1743723093471,6.0636,1813.6,1813.5,5.51419]
[1743723095633,6.0636,1813.6,1813.3,5.51465]
[1743723095987,0.7826,1813.4,1813.3,5.51465]
[1743723096194,0.7826,1813.4,1813.2,5.51507]
[1743723096495,0.7826,1813.2,1812.9,5.51589]
[1743723096690,5.33613657,1813.1,1812.9,5.51589]
[1743723096877,5.33613657,1813.1,1812.9,11.0318]
[1743723097586,5.33613657,1813.1,1813.0,5.51571]
[1743723097751,5.33613657,1813.1,1812.9,11.0318]
[1743723098384,5.33613657,1813.1,1812.9,5.51589]
[1743723098585,5.33613657,1813.1,1812.9,11.0318]
[1743723099688,5.33613657,1813.1,1813.0,5.51571]
[1743723100191,5.33613657,1813.1,1812.9,5.51589]
[1743723100353,5.33613657,1813.1,1812.9,11.0318]
[1743723100559,5.33613657,1813.1,1812.9,5.51589]
[1743723100884,5.33613657,1813.1,1812.9,11.03179]
[1743723101109,5.33613657,1813.1,1813.0,5.51571]
[1743723101110,5.281,1813.1,1813.0,5.51571]
[1743723101403,5.281,1813.1,1812.9,5.51589]
[1743723101570,5.281,1813.1,1813.0,5.51571]
[1743723102001,5.281,1813.1,1812.9,11.03176]
[1743723102300,5.281,1813.1,1812.9,11.03174]
[1743723102502,5.281,1813.1,1813.0,5.51571]
[1743723102803,5.281,1813.1,1812.9,5.51587]
[1743723103173,5.281,1813.1,1812.9,11.03176]
[1743723103806,5.281,1813.1,1813.0,5.51571]
[1743723104598,5.281,1813.1,1812.9,11.03177]
[1743723104900,5.281,1813.1,1812.9,11.03178]
[1743723105099,5.281,1813.1,1813.0,5.51571]
[1743723107483,5.281,1813.1,1813.0,6.618868]
[1743723108382,5.281,1813.1,1813.0,5.51571]
[1743723111221,5.281,1813.1,1812.9,11.03179]
[1743723111427,5.281,1813.1,1813.0,5.51571]
[1743723113386,0.05513657,1813.3,1813.1,5.51541]
[1743723113587,5.282,1813.3,1813.2,5.51511]
[1743723114198,5.282,1813.3,1813.1,11.0307]
[1743723114396,5.33713657,1813.3,1813.1,11.0307]
[1743723114638,5.282,1813.3,1813.2,5.51511]
[1743723114797,46.663,1813.4,1813.3,5.5148]
[1743723115637,41.381,1813.4,1813.3,5.5148]
[1743723115932,46.663,1813.4,1813.3,5.5148]
[1743723118748,47.4453,1813.4,1813.3,5.5148]
[1743723119653,47.4453,1813.4,1813.2,5.51497]
[1743723119810,52.18983,1813.4,1813.2,11.02999]
[1743723120015,52.18983,1813.4,1813.3,5.5148]
[1743723120245,52.18983,1813.4,1813.2,5.51497]
[1743723120425,0.05513657,1813.3,1813.2,5.51497]
[1743723120627,0.05513657,1813.3,1813.2,11.02999]
[1743723120841,0.05513657,1813.3,1813.2,5.51497]
[1743723121255,4.80518023,1813.3,1813.1,5.51529]
[1743723121925,0.05513657,1813.3,1813.1,5.51526]
[1743723122130,0.05513657,1813.3,1813.2,5.51511]
[1743723122352,47.4453,1813.4,1813.1,5.51526]
[1743723122672,0.05513657,1813.3,1813.1,5.51526]
[1743723123242,0.05513657,1813.3,1813.0,11.03132]
[1743723123441,0.05513657,1813.3,1813.1,5.51537]
[1743723123647,5.35663023,1813.3,1813.0,5.51566]
[1743723123823,0.7823,1813.1,1812.8,5.51609]
[1743723124033,5.33613657,1813.0,1812.8,5.51609]
[1743723124354,5.281,1813.0,1812.9,5.51602]
[1743723126147,5.33613657,1813.0,1812.9,5.51602]
[1743723127050,5.281,1813.0,1812.9,5.51602]
[1743723128433,5.281,1813.0,1812.9,6.00262]
[1743723129028,5.281,1813.0,1812.9,7.154491]
[1743723129534,0.85443657,1813.3,1813.1,5.51528]
[1743723129741,5.282,1813.2,1813.1,5.51528]
[1743723131565,42.1803,1813.4,1813.2,5.51511]
[1743723131743,5.282,1813.3,1813.2,5.51511]
[1743723132762,41.381,1813.4,1813.3,6.0648]
[1743723132955,41.381,1813.4,1813.3,5.5148]
[1743723135879,5.282,1813.5,1813.4,5.5145]
[1743723136259,5.33713657,1813.5,1813.4,5.5145]
[1743723136458,5.282,1813.5,1813.4,5.5145]
[1743723137652,5.282,1813.5,1813.3,11.02949]
[1743723139189,5.282,1813.5,1813.4,5.5145]
[1743723140094,7.03645336,1813.5,1813.3,5.51469]
[1743723140256,7.09158993,1813.5,1813.3,11.02937]
[1743723140799,7.09158993,1813.5,1813.4,5.5145]
[1743723141106,6.13643657,1813.5,1813.4,5.5145]
[1743723141400,6.0813,1813.5,1813.4,5.5145]
[1743723142804,6.0813,1813.5,1813.2,5.51511]
[1743723142998,0.05513657,1813.4,1813.2,11.03013]
[1743723143324,6.0813,1813.5,1813.4,5.5145]
[1743723143673,6.0813,1813.5,1813.3,11.02951]
[1743723144171,0.05513657,1813.4,1813.3,5.51469]
[1743723146279,6.13643657,1813.5,1813.3,11.0294]
[1743723146512,6.13643657,1813.5,1813.4,5.5145]
[1743723146715,6.0813,1813.5,1813.4,5.5145]
[1743723149616,5.282,1813.5,1813.4,5.5145]
[1743723150318,5.282,1813.5,1813.3,11.02937]
[1743723150505,5.33713657,1813.5,1813.3,11.02937]
[1743723150824,5.33713657,1813.5,1813.4,5.5145]
[1743723151030,5.282,1813.5,1813.4,5.5145]
[1743723154099,5.282,1813.5,1813.3,5.51468]
[1743723154291,0.05513657,1813.4,1813.3,5.51468]
[1743723155236,5.33713657,1813.5,1813.4,5.5145]
[1743723155530,5.282,1813.5,1813.4,5.5145]
[1743723155937,5.282,1813.5,1813.3,11.02935]
[1743723156602,5.282,1813.5,1813.3,11.02938]
[1743723157018,5.33713657,1813.5,1813.4,5.5145]
[1743723157225,5.282,1813.5,1813.4,5.5145]
[1743723159543,0.7779,1813.7,1813.5,5.51419]
[1743723159699,0.8788,1813.9,1813.7,5.51359]
[1743723159898,5.33513657,1813.8,1813.7,5.51359]
[1743723162536,5.28,1813.8,1813.7,5.51359]
[1743723163395,0.93393657,1813.9,1813.8,5.51328]
[1743723163601,5.379,1813.9,1813.8,5.51328]
[1743723166004,5.92241366,1813.9,1813.7,5.51345]
[1743723166312,5.43413657,1813.9,1813.8,5.51328]
[1743723166516,5.43413657,1813.9,1813.7,11.02691]
[1743723167039,5.43413657,1813.9,1813.7,5.51345]
[1743723167429,0.7788,1813.8,1813.5,5.5141]
[1743723167602,0.05513657,1813.7,1813.5,5.51407]
[1743723167803,0.05513657,1813.7,1813.6,5.51389]
[1743723168217,0.05513657,1813.8,1813.7,5.5134]
[1743723173351,5.43413657,1813.9,1813.8,5.51328]
[1743723174320,5.379,1813.9,1813.8,5.51328]
[1743723181445,5.379,1813.9,1813.7,5.5134]
[1743723181446,6.00029366,1813.9,1813.7,11.02688]
[1743723181647,0.05513657,1813.8,1813.7,11.02686]
[1743723181841,0.05513657,1813.8,1813.7,5.5134]
[1743723183115,0.7535,1813.7,1813.6,5.51376]
[1743723183456,0.80863657,1813.8,1813.7,5.51359]
[1743723183622,5.43413657,1813.9,1813.8,5.51328]
[1743723183817,5.43413657,1813.9,1813.7,5.51345]
[1743723184022,6.05290023,1813.9,1813.7,5.51345]
[1743723184467,6.05290023,1813.9,1813.7,11.02692]
[1743723184632,6.05290023,1813.9,1813.8,5.51328]
[1743723185253,5.43413657,1813.9,1813.8,5.51328]
[1743723185451,5.379,1813.9,1813.8,5.51328]
[1743723185758,0.1,1813.9,1813.8,5.99988]
[1743723185927,0.1,1813.9,1813.8,6.60500696]
[1743723186132,0.1,1813.9,1813.8,6.54988]
[1743723186322,0.1,1813.9,1813.8,7.756213]
[1743723188858,0.1,1813.9,1813.8,10.756213]
[1743723193353,0.82903657,1814.5,1814.4,5.51146]
[1743723193517,41.375,1814.7,1814.6,5.51085]
[1743723193518,42.1489,1814.7,1814.6,5.51085]
[1743723193722,41.375,1814.7,1814.6,5.51085]
[1743723193923,0.1,1814.9,1814.8,5.51024]
[1743723197744,0.8739,1814.9,1814.8,5.51024]
[1743723197944,0.8739,1814.9,1814.7,5.51042]
[1743723198145,0.05513657,1814.8,1814.7,5.51042]
[1743723198344,0.92903657,1814.9,1814.8,5.51024]
[1743723198555,0.8739,1814.9,1814.8,5.51024]
[1743723198759,0.8739,1814.9,1814.7,5.51042]
[1743723198960,0.8739,1814.9,1814.7,5.51039]
[1743723199178,0.8739,1814.9,1814.7,11.02078]
[1743723199347,0.8739,1814.9,1814.7,5.51039]
[1743723199558,0.92903657,1814.9,1814.7,11.02078]
[1743723200451,0.92903657,1814.9,1814.8,5.51024]
[1743723200656,0.1,1814.9,1814.8,5.51024]
[1743723202085,0.7564,1814.8,1814.7,5.51039]
[1743723203989,0.1,1814.9,1814.8,5.51024]
[1743723204491,0.1,1814.9,1814.8,6.06024]
[1743723205150,0.1,1814.9,1814.8,6.54684]
[1743723210496,0.1,1814.9,1814.8,6.60193194]
[1743723210785,0.1,1814.9,1814.8,6.54684]
[1743723210948,0.1,1814.9,1814.8,7.8627741]
[1743723211153,0.1,1814.9,1814.8,7.91786602]
[1743723211383,0.1,1814.9,1814.8,7.8627741]
[1743723212169,0.1,1814.9,1814.8,7.3761741]
[1743723215570,0.1,1814.9,1814.8,7.3761741]
[1743723216601,0.1,1814.9,1814.8,6.8261741]
[1743723216759,0.1,1814.9,1814.8,5.51024]
[1743723218671,0.1,1814.9,1814.8,6.06024]
[1743723219899,0.1,1814.9,1814.8,9.60193577]
[1743723220085,6.12253657,1815.5,1815.4,5.50818]
[1743723221300,6.0674,1815.5,1815.4,5.50818]
[1743723221698,6.0674,1815.5,1815.3,5.50866]
[1743723221883,6.12253657,1815.5,1815.3,11.01729]
[1743723222089,6.12253657,1815.5,1815.4,5.50842]
[1743723222403,0.7954,1816.2,1815.8,5.50721]
[1743723222569,0.05513657,1816.1,1815.8,5.50721]
[1743723223266,6.12253657,1816.2,1815.8,6.05721]
[1743723224483,6.0674,1816.2,1815.8,6.05721]
[1743723224873,6.12253657,1816.2,1815.8,6.05721]
[1743723225073,5.271,1816.0,1815.8,6.05721]
[1743723225401,5.271,1816.3,1815.8,6.05721]
[1743723225569,0.05513657,1816.2,1815.8,6.05721]
[1743723226403,5.32613657,1816.3,1815.8,6.05721]
[1743723227671,0.7954,1816.1,1815.8,6.05721]
[1743723228730,42.1394,1816.7,1815.8,9.54381]
[1743723229011,0.7954,1816.4,1815.8,15.70381]
[1743723229183,0.85053657,1816.4,1815.8,15.70381]
[1743723231183,5.298,1816.2,1815.8,15.70381]
[1743723232785,5.298,1816.2,1815.8,9.54381]
[1743723232978,5.298,1816.2,1815.8,11.10399274]
[1743723233279,0.7895,1816.1,1815.8,7.56233]
[1743723233619,0.84463657,1816.1,1815.8,5.50721]
[1743723234124,0.7895,1816.6,1815.8,13.25364544]
[1743723234418,0.7895,1816.6,1815.8,19.90857686]
[1743723234616,47.4605,1816.7,1815.8,19.90857686]
[1743723235422,47.4605,1816.7,1815.8,20.33130938]
[1743723235713,42.1335,1816.7,1815.8,31.46730938]
[1743723236015,42.1335,1816.7,1815.8,29.35477932]
[1743723236239,47.4575,1816.7,1815.8,29.35477932]
[1743723239027,1e-05,1816.9,1816.8,13.25894686]
[1743723239331,1e-05,1816.9,1816.8,21.29527755]
[1743723239822,1e-05,1816.9,1816.8,21.78187755]
[1743723240015,1e-05,1816.9,1816.8,17.09051069]
[1743723240185,1e-05,1816.9,1816.8,10.93051069]
[1743723240393,1e-05,1816.9,1816.8,5.50418]
[1743723240708,6.18451,1816.9,1816.8,5.50418]
[1743723241809,5.39501,1816.9,1816.6,5.50474]
[1743723242001,0.7895,1816.7,1816.6,11.00936]
[1743723242926,0.7895,1816.7,1816.6,5.50462]
[1743723245126,0.7895,1816.7,1816.5,11.01008]
[1743723245317,0.7895,1816.7,1816.5,5.50496]
[1743723245489,0.05513657,1816.6,1816.4,5.50534]
[1743723245691,0.7895,1816.5,1816.4,5.50534]
[1743723250032,0.7895,1816.5,1816.4,6.606431]
[1743723251427,0.7895,1816.5,1816.4,5.50534]
[1743723252227,0.7503,1816.7,1816.6,11.0091]
[1743723252663,0.75031,1816.9,1816.8,5.50418]
[1743723252812,1e-05,1816.9,1816.8,7.155046]
[1743723253016,1e-05,1816.9,1816.8,5.50418]
[1743723254456,0.75031,1816.9,1816.8,5.50418]
[1743723254857,0.75031,1816.9,1816.7,5.50448]
[1743723255042,0.05513657,1816.8,1816.7,5.50448]
[1743723255416,0.7503,1816.7,1816.5,5.50502]
[1743723255617,5.381,1816.6,1816.5,11.01004]
[1743723256555,5.381,1816.6,1816.5,5.50502]
[1743723257560,0.7503,1816.7,1816.6,5.50478]
[1743723257718,0.75031,1816.9,1816.8,5.50418]
[1743723259126,1e-05,1816.9,1816.8,5.50418]
[1743723271490,0.80641,1816.9,1816.8,5.50418]
[1743723272088,1e-05,1816.9,1816.8,7.1466735]
[1743723272293,1e-05,1816.9,1816.8,7.69666138]
[1743723272604,1e-05,1816.9,1816.8,11.90142824]
[1743723272908,1e-05,1816.9,1816.8,11.84639986]
[1743723274220,1e-05,1816.9,1816.8,7.641633]
[1743723274421,1e-05,1816.9,1816.8,7.69666172]
[1743723274617,1e-05,1816.9,1816.8,6.66006176]
[1743723275508,1e-05,1816.9,1816.8,6.605033]
[1743723275710,1e-05,1816.9,1816.8,6.66006656]
[1743723278523,1e-05,1816.9,1816.8,6.66006649]
[1743723278819,1e-05,1816.9,1816.8,21.06143335]
[1743723279024,1e-05,1816.9,1816.8,25.21116672]
[1743723279225,1e-05,1816.9,1816.8,21.00639986]
[1743723297696,1e-05,1816.9,1816.8,20.51979986]
[1743723298381,1e-05,1816.9,1816.8,16.315033]
[1743723301258,1e-05,1816.9,1816.8,16.801633]
[1743723304612,1e-05,1816.9,1816.8,26.81639986]
[1743723306325,0.7898,1817.8,1817.7,5.50132]
[1743723309321,0.1,1817.9,1817.8,5.50115]
[1743723310487,1.53761,1817.9,1817.8,5.50115]
[1743723310700,0.9131,1817.9,1817.8,5.50115]
[1743723312423,0.96823657,1817.9,1817.8,5.50115]
[1743723312786,0.9131,1817.9,1817.8,5.50115]
[1743723313288,0.9131,1817.9,1817.6,5.50169]
[1743723313603,0.8131,1817.6,1817.4,5.50223]
[1743723313919,6.1481,1817.5,1817.4,5.50223]